[Event "12th Arad Open 2019"]
[Site "Arad"]
[Date "2019.07.28"]
[Round "6.40"]
[White "Georgescu, Cristian"]
[Black "Dobrin, Ionut-Alexandru"]
[Result "0-1"]
[ECO "B38"]
[WhiteElo "1891"]
[BlackElo "2142"]
[Annotator "NA"]
[PlyCount "82"]
[EventDate "2019.07.24"]
[EventType "swiss"]
[EventCountry "ROU"]
[SourceTitle "playchess.com"]
[Source "ChessBase"]
[SourceQuality "1"]
[TimeControl "40/5400+30:900+30"]

1. e4 {[%emt 0:00:00]} c5 {[%emt 0:00:00]} 2. Nf3 {[%emt 0:00:00]} Nc6 {[%emt 0:00:00]} 3. d4 {[%emt 0:00:08]} cxd4 {[%emt 0:00:00]} 4. Nxd4 {[%emt 0:00:05]} g6 {[%emt 0:00:00]} 5. c4 {[%emt 0:00:13]} Bg7 {[%emt 0:00:02]} 6. Be3 {[%emt 0:00:03]} Nf6 {[%emt 0:00:11]} 7. Nc3 {[%emt 0:00:13]} O-O {[%emt 0:01:13]} 8. Be2 {[%emt 0:00:14]} d6 {[%emt 0:01:29]} 9. O-O {[%emt 0:00:26]} Bd7 {[%emt 0:00:32]} 10. f3 {[%emt 0:00:19]} Nxd4 {[%emt 0:00:13]} 11. Bxd4 {[%emt 0:00:04]} a5 {[%emt 0:00:08]} 12. Qd2 {[%emt 0:01:10]} Bc6 {[%emt 0:00:37]} 13. Rab1 {[%emt 0:04:48]} Nd7 {[%emt 0:03:02]} 14. Bf2 {[%emt 0:02:15]} Nc5 {[%emt 0:03:19]} 15. Rfc1 {[%emt 0:03:36]} e6 {[%emt 0:05:28]} 16. Rd1 {[%emt 0:02:51]} Be5 {[%emt 0:00:18]} 17. Bf1 {[%emt 0:16:32]} Qe7 {[%emt 0:10:37]} 18. Ne2 {[%emt 0:04:00]} Rfd8 {[%emt 0:16:55]} 19. Nd4 {[%emt 0:10:13]} Be8 {[%emt 0:04:25]} 20. Qh6 {[%emt 0:08:07]} Qf6 {[%emt 0:05:49]} 21. Ne2 {[%emt 0:01:39]} Qg7 {[%emt 0:00:36]} 22. Qd2 {[%emt 0:01:12]} Bf6 {[%emt 0:07:21]} 23. g4 {[%emt 0:07:59]} e5 {[%emt 0:07:15]} 24. Be3 {[%emt 0:01:54]} Qf8 {[%emt 0:01:04]} 25. b3 {[%emt 0:03:33]} Bc6 {[%emt 0:00:49]} 26. g5 {[%emt 0:01:18]} Bg7 {[%emt 0:00:48]} 27. a3 {[%emt 0:05:18]} a4 {[%emt 0:05:36]} 28. b4 {[%emt 0:03:55]} Nb3 {[%emt 0:00:05]} 29. Qd3 {[%emt 0:01:21]} f5 {[%emt 0:01:55]} 30. Bb6 {[%emt 0:04:31]} fxe4 {[%emt 0:06:22]} 31. fxe4 {[%emt 0:00:26]} Qe7 {[%emt 0:00:40]} 32. Bxd8 {[%emt 0:00:46]} Rxd8 {[%emt 0:00:05]} 33. h4 {[%emt 0:01:27]} h6 {[%emt 0:01:36]} 34. Qe3 {[%emt 0:06:21]} hxg5 {[%emt 0:00:50]} 35. hxg5 {[%emt 0:00:23]} Nd4 {[%emt 0:02:10]} 36. b5 {[%emt 0:00:22]} Bd7 {[%emt 0:00:46]} 37. Bg2 {[%emt 0:00:37]} Bg4 {[%emt 0:02:20]} 38. Rxd4 {[%emt 0:04:27]} exd4 {[%emt 0:00:32]} 39. Nxd4 {[%emt 0:00:02]} d5 {[%emt 0:04:04]} 40. cxd5 {[%emt 0:00:00]} Rxd5 {[%emt 0:00:00]} 41. Rb4 {[%emt 0:07:36]} Qxb4 {[%emt 0:00:58]} 0-1

[Event "12th Arad Open 2019"]
[Site "Arad"]
[Date "2019.07.29"]
[Round "7.1"]
[White "Mastrovasilis, Dimitrios"]
[Black "Gorodetzky, David"]
[Result "1/2-1/2"]
[ECO "C17"]
[WhiteElo "2589"]
[BlackElo "2461"]
[Annotator "ChessBase"]
[PlyCount "58"]
[EventDate "2019.07.24"]
[EventType "swiss"]
[EventCountry "ROU"]
[SourceTitle "playchess.com"]
[Source "ChessBase"]
[SourceQuality "1"]
[TimeControl "40/5400+30:900+30"]

1. e4 {[%emt 0:00:00]} e6 {[%emt 0:00:00]} 2. d4 {[%emt 0:00:06]} d5 {[%emt 0:00:00]} 3. Nc3 {[%emt 0:00:16]} Bb4 {[%emt 0:00:00]} 4. e5 {[%emt 0:00:19]} c5 {[%emt 0:00:00]} 5. Bd2 {[%emt 0:00:24]} Ne7 {[%emt 0:00:08]} 6. a3 {[%emt 0:00:32]} Bxc3 {[%emt 0:00:21]} 7. Bxc3 {[%emt 0:00:09]} b6 {[%emt 0:02:14]} 8. Bb5+ {[%emt 0:07:35]} Bd7 {[%emt 0:11:01]} 9. Bd3 {[%emt 0:00:20]} Nbc6 {[%emt 0:01:05]} 10. f4 {[%emt 0:00:49]} cxd4 {[%emt 0:08:41]} 11. Bd2 {[%emt 0:00:31]} O-O {[%emt 0:01:18]} 12. Nf3 {[%emt 0:02:35]} f6 {[%emt 0:02:11]} 13. O-O {[%emt 0:25:25]} Be8 {[%emt 0:05:07]} 14. Qe2 {[%emt 0:00:54]} Bg6 {[%emt 0:04:31]} 15. exf6 {[%emt 0:12:44]} Rxf6 {[%emt 0:00:03]} 16. Rae1 {[%emt 0:01:56]} Qd7 {[%emt 0:03:51]} 17. Bxg6 {[%emt 0:14:27]} Nxg6 {[%emt 0:00:45]} 18. g3 {[%emt 0:01:35]} Re8 {[%emt 0:11:27]} 19. Kg2 {[%emt 0:01:15]} e5 {[%emt 0:03:58]} 20. fxe5 {[%emt 0:00:26]} Ncxe5 {[%emt 0:08:03]} 21. Nxd4 {[%emt 0:03:15]} Rxf1 {[%emt 0:01:48]} 22. Qxf1 {[%emt 0:00:22]} Qg4 {[%emt 0:02:06]} 23. Nf3 {[%emt 0:05:33]} Rf8 {[%emt 0:07:07]} 24. Rxe5 {[%emt 0:00:19]} Nxe5 {[%emt 0:01:06]} 25. Nxe5 {[%emt 0:00:08]} Qe4+ {[%emt 0:00:43]} 26. Nf3 {[%emt 0:00:09]} Qxc2 {[%emt 0:00:37]} 27. Qe2 {[%emt 0:02:08]} Qxb2 {[%emt 0:02:17]} 28. Qe6+ {[%emt 0:00:33]} Kh8 {[%emt 0:00:52]} 29. Qd6 {[%emt 0:00:18]} Qf6 1/2-1/2

[Event "12th Arad Open 2019"]
[Site "Arad"]
[Date "2019.07.29"]
[Round "7.2"]
[White "Soltanici, Ruslan"]
[Black "Istratescu, Andrei"]
[Result "1/2-1/2"]
[ECO "B11"]
[WhiteElo "2408"]
[BlackElo "2555"]
[Annotator "ChessBase"]
[PlyCount "23"]
[EventDate "2019.07.24"]
[EventType "swiss"]
[EventCountry "ROU"]
[SourceTitle "playchess.com"]
[Source "ChessBase"]
[SourceQuality "1"]
[TimeControl "40/5400+30:900+30"]

1. e4 {[%emt 0:00:00]} c6 {[%emt 0:00:00]} 2. Nc3 {[%emt 0:00:17]} d5 {[%emt 0:00:11]} 3. Nf3 {[%emt 0:00:15]} Bg4 {[%emt 0:00:23]} 4. h3 {[%emt 0:00:22]} Bxf3 {[%emt 0:00:05]} 5. Qxf3 {[%emt 0:00:08]} e6 {[%emt 0:00:02]} 6. Be2 {[%emt 0:02:11]} Nf6 {[%emt 0:06:30]} 7. O-O {[%emt 0:02:25]} Bc5 {[%emt 0:11:54]} 8. Rd1 {[%emt 0:01:47]} Bd4 {[%emt 0:03:07]} 9. Qf4 Bxc3 10. dxc3 Nxe4 11. c4 O-O 12. Be3 1/2-1/2

[Event "12th Arad Open 2019"]
[Site "Arad"]
[Date "2019.07.29"]
[Round "7.3"]
[White "Visanescu, Daria-Ioana"]
[Black "Jianu, Vlad-Cristian"]
[Result "1/2-1/2"]
[ECO "B22"]
[WhiteElo "2079"]
[BlackElo "2523"]
[Annotator "ChessBase"]
[PlyCount "56"]
[EventDate "2019.07.24"]
[EventType "swiss"]
[EventCountry "ROU"]
[SourceTitle "playchess.com"]
[Source "ChessBase"]
[SourceQuality "1"]
[TimeControl "40/5400+30:900+30"]

1. e4 {[%emt 0:00:25]} c5 {[%emt 0:00:00]} 2. c3 {[%emt 0:00:06]} d6 {[%emt 0:00:00]} 3. Bd3 {[%emt 0:02:26]} g6 {[%emt 0:03:16]} 4. Nf3 {[%emt 0:00:22]} Bg7 {[%emt 0:00:08]} 5. O-O {[%emt 0:00:54]} Nf6 {[%emt 0:01:03]} 6. Bc2 {[%emt 0:01:05]} O-O {[%emt 0:00:16]} 7. h3 {[%emt 0:00:45]} Nc6 {[%emt 0:02:21]} 8. a3 {[%emt 0:06:38]} e5 {[%emt 0:05:20]} 9. d4 {[%emt 0:05:07]} exd4 {[%emt 0:02:22]} 10. cxd4 {[%emt 0:00:07]} cxd4 {[%emt 0:00:54]} 11. Nxd4 {[%emt 0:00:37]} Nxd4 {[%emt 0:00:28]} 12. Qxd4 {[%emt 0:00:04]} Re8 {[%emt 0:00:13]} 13. Qa4 {[%emt 0:09:55]} Bd7 {[%emt 0:07:23]} 14. Qb4 {[%emt 0:00:08]} a5 {[%emt 0:06:47]} 15. Qxd6 {[%emt 0:03:54]} Nxe4 {[%emt 0:01:19]} 16. Bxe4 {[%emt 0:02:32]} Rxe4 {[%emt 0:00:06]} 17. Nc3 {[%emt 0:06:19]} Bxc3 {[%emt 0:05:37]} 18. Qd3 {[%emt 0:03:28]} Qe8 {[%emt 0:53:52]} 19. Qxc3 {[%emt 0:00:33]} Rc8 {[%emt 0:00:05]} 20. Qf6 {[%emt 0:03:45]} Rc6 {[%emt 0:02:02]} 21. Qf3 {[%emt 0:00:49]} Rce6 {[%emt 0:04:13]} 22. Bd2 {[%emt 0:04:54]} Bb5 {[%emt 0:00:58]} 23. Rfc1 {[%emt 0:00:40]} Bc6 {[%emt 0:00:07]} 24. Qc3 {[%emt 0:01:00]} a4 {[%emt 0:00:28]} 25. Rd1 {[%emt 0:02:25]} Qe7 {[%emt 0:01:35]} 26. Be3 {[%emt 0:02:18]} Qh4 {[%emt 0:01:10]} 27. Rd4 {[%emt 0:07:09]} Rxd4 {[%emt 0:00:30]} 28. Qxd4 {[%emt 0:00:02]} Qxd4 {[%emt 0:00:07]} 1/2-1/2

[Event "12th Arad Open 2019"]
[Site "Arad"]
[Date "2019.07.29"]
[Round "7.4"]
[White "Costachi, Mihnea"]
[Black "Banzea, Alexandru-Bogdan"]
[Result "1-0"]
[ECO "D70"]
[WhiteElo "2471"]
[BlackElo "2405"]
[Annotator "ChessBase"]
[PlyCount "25"]
[EventDate "2019.07.24"]
[EventType "swiss"]
[EventCountry "ROU"]
[SourceTitle "playchess.com"]
[Source "ChessBase"]
[SourceQuality "1"]
[TimeControl "40/5400+30:900+30"]

1. d4 {[%emt 0:00:00]} Nf6 {[%emt 0:00:00]} 2. c4 {[%emt 0:00:02]} g6 {[%emt 0:00:00]} 3. Nf3 {[%emt 0:00:07]} Bg7 {[%emt 0:00:00]} 4. g3 {[%emt 0:00:25]} c6 {[%emt 0:03:54]} 5. Nc3 {[%emt 0:00:50]} d5 {[%emt 0:00:29]} 6. cxd5 {[%emt 0:00:04]} cxd5 {[%emt 0:00:07]} 7. Bg2 {[%emt 0:00:03]} Ne4 {[%emt 0:02:59]} 8. Qb3 {[%emt 0:00:16]} Nxc3 {[%emt 0:01:14]} 9. bxc3 {[%emt 0:00:17]} O-O {[%emt 0:00:52]} 10. O-O {[%emt 0:02:39]} Nc6 {[%emt 0:00:58]} 11. Nd2 {[%emt 0:00:47]} e6 {[%emt 0:05:42]} 12. e4 {[%emt 0:00:19]} Na5 {[%emt 0:02:44]} 13. Qc2 {[%emt 0:21:47]} 1-0

[Event "12th Arad Open 2019"]
[Site "Arad"]
[Date "2019.07.29"]
[Round "7.5"]
[White "David, Alexandru-Vasile"]
[Black "Nester, Ihor"]
[Result "1-0"]
[ECO "A80"]
[WhiteElo "2428"]
[BlackElo "2361"]
[Annotator "NA"]
[PlyCount "43"]
[EventDate "2019.07.24"]
[EventType "swiss"]
[EventCountry "ROU"]
[SourceTitle "playchess.com"]
[Source "ChessBase"]
[SourceQuality "1"]
[TimeControl "40/5400+30:900+30"]

1. d4 {[%emt 0:00:00]} f5 {[%emt 0:02:03]} 2. Bg5 {[%emt 0:00:00]} g6 {[%emt 0:00:09]} 3. Nc3 {[%emt 0:00:06]} Bg7 {[%emt 0:00:22]} 4. h4 {[%emt 0:00:08]} c6 {[%emt 0:04:27]} 5. e4 {[%emt 0:03:22]} fxe4 {[%emt 0:02:23]} 6. Nxe4 {[%emt 0:00:29]} d5 {[%emt 0:00:09]} 7. Ng3 {[%emt 0:08:24]} Qb6 {[%emt 0:00:48]} 8. c3 {[%emt 0:03:53]} Be6 {[%emt 0:17:15]} 9. Qc2 {[%emt 0:01:18]} Nd7 {[%emt 0:00:47]} 10. Bd3 {[%emt 0:04:37]} Bf7 {[%emt 0:03:06]} 11. Nf3 {[%emt 0:03:44]} Ngf6 {[%emt 0:01:47]} 12. O-O {[%emt 0:03:13]} O-O-O {[%emt 0:04:20]} 13. Bf4 {[%emt 0:02:05]} Ng4 {[%emt 0:02:24]} 14. Rae1 {[%emt 0:00:14]} Bf6 {[%emt 0:20:47]} 15. Ng5 {[%emt 0:01:28]} Bg8 {[%emt 0:04:14]} 16. Ne6 {[%emt 0:05:48]} Bxe6 {[%emt 0:00:20]} 17. Rxe6 {[%emt 0:00:04]} Bxh4 {[%emt 0:01:21]} 18. Qe2 {[%emt 0:02:23]} Ngf6 {[%emt 0:02:55]} 19. a4 {[%emt 0:00:37]} Rdf8 {[%emt 0:03:13]} 20. b4 {[%emt 0:02:42]} Bxg3 {[%emt 0:03:51]} 21. a5 {[%emt 0:02:18]} Qd8 {[%emt 0:00:02]} 22. Rxc6+ {[%emt 0:00:05]} 1-0

[Event "12th Arad Open 2019"]
[Site "Arad"]
[Date "2019.07.29"]
[Round "7.6"]
[White "Schitco, Ivan"]
[Black "Stoleriu, George"]
[Result "1-0"]
[ECO "A40"]
[WhiteElo "2462"]
[BlackElo "2360"]
[Annotator "RC"]
[PlyCount "81"]
[EventDate "2019.07.24"]
[EventType "swiss"]
[EventCountry "ROU"]
[SourceTitle "playchess.com"]
[Source "ChessBase"]
[SourceQuality "1"]
[TimeControl "40/5400+30:900+30"]

1. d4 {[%emt 0:00:00]} e6 {[%emt 0:00:00]} 2. c4 {[%emt 0:00:00]} Nf6 {[%emt 0:00:00]} 3. g3 {[%emt 0:00:05]} Bb4+ {[%emt 0:00:11]} 4. Bd2 {[%emt 0:00:14]} Qe7 {[%emt 0:00:14]} 5. Bg2 {[%emt 0:00:29]} O-O {[%emt 0:10:53]} 6. e3 {[%emt 0:01:32]} d5 {[%emt 0:04:04]} 7. a3 {[%emt 0:02:21]} Bxd2+ {[%emt 0:00:22]} 8. Nxd2 {[%emt 0:00:05]} dxc4 {[%emt 0:02:38]} 9. Nxc4 {[%emt 0:01:33]} c5 {[%emt 0:11:06]} 10. Ne2 {[%emt 0:08:44]} Rd8 {[%emt 0:11:30]} 11. O-O {[%emt 0:08:55]} cxd4 {[%emt 0:03:51]} 12. exd4 {[%emt 0:00:44]} Nd5 {[%emt 0:03:21]} 13. Rc1 {[%emt 0:18:34]} Nc6 {[%emt 0:08:14]} 14. Qb3 {[%emt 0:04:22]} Qf6 {[%emt 0:07:13]} 15. Rfd1 {[%emt 0:03:59]} Nce7 {[%emt 0:02:00]} 16. Nc3 {[%emt 0:06:36]} b6 {[%emt 0:11:02]} 17. Ne4 {[%emt 0:16:38]} Qh6 {[%emt 0:02:03]} 18. h4 {[%emt 0:05:21]} Ba6 {[%emt 0:06:38]} 19. Ne5 {[%emt 0:04:50]} Be2 {[%emt 0:09:09]} 20. Re1 {[%emt 0:01:37]} Bh5 {[%emt 0:02:00]} 21. Ng5 {[%emt 0:08:12]} Qf6 {[%emt 0:02:17]} 22. Be4 {[%emt 0:01:11]} Nf5 {[%emt 0:00:10]} 23. g4 {[%emt 0:03:36]} Nxh4 {[%emt 0:01:09]} 24. Nxh7 {[%emt 0:00:19]} Qf4 {[%emt 0:00:15]} 25. gxh5 {[%emt 0:00:24]} f5 {[%emt 0:00:02]} 26. Bxd5 {[%emt 0:00:33]} Rxd5 {[%emt 0:00:19]} 27. Qg3 {[%emt 0:00:53]} Qxg3+ {[%emt 0:00:34]} 28. fxg3 {[%emt 0:00:01]} Rxe5 {[%emt 0:00:06]} 29. Ng5 {[%emt 0:00:07]} Rd5 {[%emt 0:00:43]} 30. gxh4 {[%emt 0:00:32]} Rxd4 {[%emt 0:00:04]} 31. Nf3 {[%emt 0:01:41]} Rf4 {[%emt 0:01:08]} 32. Kg2 {[%emt 0:00:20]} Re8 {[%emt 0:01:00]} 33. Rc6 {[%emt 0:00:55]} Rg4+ {[%emt 0:00:33]} 34. Kf2 {[%emt 0:00:09]} e5 {[%emt 0:00:02]} 35. Rxe5 {[%emt 0:00:21]} Rxe5 {[%emt 0:00:05]} 36. Nxe5 {[%emt 0:00:04]} Rxh4 {[%emt 0:00:07]} 37. Rc8+ {[%emt 0:00:10]} Kh7 {[%emt 0:00:10]} 38. Rh8+ {[%emt 0:00:18]} Kxh8 {[%emt 0:00:04]} 39. Ng6+ {[%emt 0:00:02]} Kh7 {[%emt 0:00:04]} 40. Nxh4 {[%emt 0:00:00]} Kh6 {[%emt 0:00:00]} 41. Nxf5+ {[%emt 0:00:12]} 1-0

[Event "12th Arad Open 2019"]
[Site "Arad"]
[Date "2019.07.29"]
[Round "7.7"]
[White "Svetushkin, Dmitry"]
[Black "Ardeleanu, Alin"]
[Result "1/2-1/2"]
[ECO "B06"]
[WhiteElo "2528"]
[BlackElo "2323"]
[Annotator "ChessBase"]
[PlyCount "157"]
[EventDate "2019.07.24"]
[EventType "swiss"]
[EventCountry "ROU"]
[SourceTitle "playchess.com"]
[Source "ChessBase"]
[SourceQuality "1"]
[TimeControl "40/5400+30:900+30"]

1. e4 {[%emt 0:00:00]} g6 {[%emt 0:00:05]} 2. d4 {[%emt 0:00:00]} c6 {[%emt 0:01:19]} 3. Nf3 {[%emt 0:00:13]} d5 {[%emt 0:01:01]} 4. e5 {[%emt 0:00:18]} Bg7 {[%emt 0:00:37]} 5. Bd3 {[%emt 0:11:48]} Bg4 {[%emt 0:09:22]} 6. Nbd2 {[%emt 0:04:02]} e6 {[%emt 0:13:23]} 7. h3 {[%emt 0:02:00]} Bxf3 {[%emt 0:00:06]} 8. Nxf3 {[%emt 0:00:05]} Nd7 {[%emt 0:01:34]} 9. Qe2 {[%emt 0:03:09]} Ne7 {[%emt 0:02:25]} 10. h4 {[%emt 0:00:22]} c5 {[%emt 0:01:42]} 11. c3 {[%emt 0:00:08]} Nc6 {[%emt 0:02:36]} 12. h5 {[%emt 0:00:48]} Qb6 {[%emt 0:00:28]} 13. Be3 {[%emt 0:00:33]} cxd4 {[%emt 0:04:54]} 14. Nxd4 {[%emt 0:05:22]} Ncxe5 {[%emt 0:13:04]} 15. Bb5 {[%emt 0:01:58]} Qd6 {[%emt 0:07:29]} 16. O-O-O {[%emt 0:07:09]} a6 {[%emt 0:02:07]} 17. f4 {[%emt 0:08:34]} axb5 {[%emt 0:29:00]} 18. Nxb5 {[%emt 0:00:34]} Qc6 {[%emt 0:00:08]} 19. fxe5 {[%emt 0:01:02]} Bxe5 {[%emt 0:02:19]} 20. Bd4 {[%emt 0:00:30]} Bxd4 {[%emt 0:01:09]} 21. Nxd4 {[%emt 0:09:52]} Qa6 {[%emt 0:00:53]} 22. Qe3 {[%emt 0:01:00]} O-O-O {[%emt 0:01:14]} 23. Kb1 {[%emt 0:00:40]} Qb6 {[%emt 0:02:35]} 24. Qf3 {[%emt 0:02:50]} Ne5 {[%emt 0:00:18]} 25. Qf6 {[%emt 0:00:39]} Nc4 {[%emt 0:00:07]} 26. Nb3 {[%emt 0:02:29]} e5 {[%emt 0:00:10]} 27. Qf3 {[%emt 0:07:02]} e4 {[%emt 0:00:01]} 28. Qe2 {[%emt 0:01:06]} Rhe8 {[%emt 0:01:03]} 29. Rd4 {[%emt 0:00:35]} Rd7 {[%emt 0:00:40]} 30. g4 {[%emt 0:01:23]} f5 {[%emt 0:00:06]} 31. hxg6 {[%emt 0:02:14]} hxg6 {[%emt 0:00:06]} 32. gxf5 {[%emt 0:03:39]} gxf5 {[%emt 0:00:01]} 33. Qf2 {[%emt 0:00:17]} Qg6 {[%emt 0:02:38]} 34. Rg1 {[%emt 0:01:39]} Qh7 {[%emt 0:00:01]} 35. Qe2 {[%emt 0:02:11]} f4 {[%emt 0:00:22]} 36. Rxd5 {[%emt 0:00:29]} e3+ {[%emt 0:01:34]} 37. Kc1 {[%emt 0:02:13]} Rxd5 {[%emt 0:00:13]} 38. Qxc4+ {[%emt 0:00:09]} Kb8 {[%emt 0:00:11]} 39. Qxd5 {[%emt 0:00:07]} e2 {[%emt 0:00:08]} 40. Qd6+ {[%emt 0:00:00]} Ka8 {[%emt 0:00:00]} 41. Re1 {[%emt 0:13:39]} Qh4 {[%emt 0:03:35]} 42. Kd2 {[%emt 0:04:38]} Rd8 {[%emt 0:01:54]} 43. Qxd8+ {[%emt 0:00:10]} Qxd8+ {[%emt 0:00:01]} 44. Kxe2 {[%emt 0:00:06]} Qd5 {[%emt 0:05:57]} 45. Kf2 {[%emt 0:06:08]} Qd3 {[%emt 0:00:30]} 46. Re2 {[%emt 0:04:31]} Qg3+ {[%emt 0:00:19]} 47. Kf1 {[%emt 0:00:03]} Qh3+ {[%emt 0:03:15]} 48. Ke1 {[%emt 0:00:04]} Qh1+ {[%emt 0:00:27]} 49. Kd2 {[%emt 0:00:05]} Qb1 {[%emt 0:00:13]} 50. Nd4 {[%emt 0:00:43]} Qxb2+ {[%emt 0:00:27]} 51. Kd3 {[%emt 0:00:03]} Qb1+ {[%emt 0:00:19]} 52. Kc4 {[%emt 0:00:15]} Qg6 {[%emt 0:00:48]} 53. a4 {[%emt 0:01:09]} Ka7 {[%emt 0:01:35]} 54. Re5 {[%emt 0:01:37]} Kb8 {[%emt 0:01:01]} 55. Rf5 {[%emt 0:00:14]} Qd6 {[%emt 0:00:36]} 56. a5 {[%emt 0:00:33]} Kc8 {[%emt 0:00:46]} 57. Kd3 {[%emt 0:00:19]} Kd7 {[%emt 0:00:42]} 58. Ke4 {[%emt 0:00:19]} Qa3 {[%emt 0:00:26]} 59. Kd3 {[%emt 0:02:28]} Ke7 {[%emt 0:00:33]} 60. Rb5 {[%emt 0:01:36]} Kf6 {[%emt 0:00:19]} 61. Rb6+ {[%emt 0:00:04]} Kg5 {[%emt 0:00:12]} 62. Rxb7 {[%emt 0:00:04]} Kf6 {[%emt 0:00:56]} 63. Rb5 {[%emt 0:00:09]} Qc1 {[%emt 0:00:33]} 64. Kc4 {[%emt 0:02:11]} Qf1+ {[%emt 0:00:09]} 65. Kb4 {[%emt 0:00:03]} Qb1+ {[%emt 0:00:15]} 66. Kc5 {[%emt 0:00:13]} Qa1 {[%emt 0:00:45]} 67. c4 {[%emt 0:00:56]} f3 {[%emt 0:01:38]} 68. Nxf3 {[%emt 0:00:18]} Qa3+ {[%emt 0:00:01]} 69. Kb6 {[%emt 0:00:11]} Qxf3 {[%emt 0:00:03]} 70. a6 {[%emt 0:00:13]} Qa8 {[%emt 0:01:46]} 71. a7 {[%emt 0:00:15]} Qd8+ {[%emt 0:01:08]} 72. Kb7 {[%emt 0:00:31]} Qd7+ {[%emt 0:00:00]} 73. Ka6 {[%emt 0:01:18]} Qc8+ {[%emt 0:00:04]} 74. Ka5 {[%emt 0:00:03]} Qxc4 {[%emt 0:02:03]} 75. Kb6 {[%emt 0:01:28]} Qe6+ {[%emt 0:00:33]} 76. Kb7 {[%emt 0:00:39]} Qd7+ {[%emt 0:00:12]} 77. Kb6 {[%emt 0:00:03]} Qd6+ {[%emt 0:00:24]} 78. Kb7 {[%emt 0:00:04]} Qd7+ {[%emt 0:00:07]} 79. Kb6 {[%emt 0:00:03] Ke5} 1/2-1/2

[Event "12th Arad Open 2019"]
[Site "Arad"]
[Date "2019.07.29"]
[Round "7.8"]
[White "Dicu, Razvan-Stefan"]
[Black "Song, Raymond"]
[Result "0-1"]
[ECO "B22"]
[WhiteElo "2286"]
[BlackElo "2456"]
[Annotator "ChessBase"]
[PlyCount "106"]
[EventDate "2019.07.24"]
[EventType "swiss"]
[EventCountry "ROU"]
[SourceTitle "playchess.com"]
[Source "ChessBase"]
[SourceQuality "1"]
[TimeControl "40/5400+30:900+30"]

1. e4 {[%emt 0:01:08]} c5 {[%emt 0:00:00]} 2. c3 {[%emt 0:01:48]} Nf6 {[%emt 0:00:00]} 3. e5 {[%emt 0:00:07]} Nd5 {[%emt 0:00:00]} 4. d4 {[%emt 0:00:07]} cxd4 {[%emt 0:00:00]} 5. cxd4 {[%emt 0:00:08]} d6 {[%emt 0:00:00]} 6. Nf3 {[%emt 0:00:14]} e6 {[%emt 0:00:16]} 7. Bc4 {[%emt 0:00:32]} Be7 {[%emt 0:00:21]} 8. O-O {[%emt 0:00:11]} O-O {[%emt 0:00:05]} 9. Qe2 {[%emt 0:01:05]} b6 {[%emt 0:00:05]} 10. Qe4 {[%emt 0:20:43]} Ba6 {[%emt 0:00:04]} 11. Bxd5 {[%emt 0:25:08]} exd5 {[%emt 0:00:16]} 12. Qxd5 {[%emt 0:00:08]} Nc6 {[%emt 0:00:03]} 13. Rd1 {[%emt 0:08:11]} Nb4 {[%emt 0:00:07]} 14. Qb3 {[%emt 0:00:15]} dxe5 {[%emt 0:01:39]} 15. a3 {[%emt 0:09:43]} Nd3 {[%emt 0:03:40]} 16. Rxd3 {[%emt 0:02:19]} e4 {[%emt 0:00:40]} 17. Rd1 {[%emt 0:00:22]} exf3 {[%emt 0:07:54]} 18. Qxf3 {[%emt 0:00:07]} Qd7 {[%emt 0:01:51]} 19. Nc3 {[%emt 0:00:18]} Rad8 {[%emt 0:00:25]} 20. Bf4 {[%emt 0:04:28]} Rfe8 {[%emt 0:00:24]} 21. Re1 {[%emt 0:05:48]} Qxd4 {[%emt 0:03:17]} 22. Rad1 {[%emt 0:00:45]} Bf8 {[%emt 0:02:31]} 23. Rxe8 {[%emt 0:02:44]} Rxe8 {[%emt 0:00:03]} 24. h3 {[%emt 0:00:22]} Qc4 {[%emt 0:00:28]} 25. Rd7 {[%emt 0:09:37]} Bc5 {[%emt 0:02:03]} 26. Ne4 {[%emt 0:01:45]} Bb5 {[%emt 0:19:54]} 27. Nxc5 {[%emt 0:00:05]} Bxd7 {[%emt 0:00:05]} 28. Nxd7 {[%emt 0:00:07]} f6 {[%emt 0:00:16]} 29. Kh2 {[%emt 0:03:08]} Qe6 {[%emt 0:07:20]} 30. Nb8 {[%emt 0:00:21]} g5 {[%emt 0:01:56]} 31. Qg3 {[%emt 0:01:48]} h5 {[%emt 0:02:18]} 32. Na6 {[%emt 0:01:24]} h4 {[%emt 0:09:59]} 33. Qd3 {[%emt 0:00:08]} Re7 {[%emt 0:02:01]} 34. Nc7 {[%emt 0:00:34]} Qf7 {[%emt 0:00:17]} 35. Qd8+ {[%emt 0:00:33]} Kg7 {[%emt 0:01:24]} 36. Bd6 {[%emt 0:00:21]} Rd7 {[%emt 0:00:46]} 37. Qc8 {[%emt 0:00:17]} Kg6 {[%emt 0:02:10]} 38. Nb5 {[%emt 0:00:59]} f5 {[%emt 0:10:27]} 39. f4 {[%emt 0:00:46]} g4 {[%emt 0:00:26]} 40. hxg4 {[%emt 0:00:00]} fxg4 {[%emt 0:00:00]} 41. Qc2+ {[%emt 0:04:09]} Qf5 {[%emt 0:01:01]} 42. Qxf5+ {[%emt 0:02:04]} Kxf5 {[%emt 0:00:01]} 43. Be5 {[%emt 0:04:13]} Rd2 {[%emt 0:02:01]} 44. Nd6+ {[%emt 0:00:05]} Ke6 {[%emt 0:00:10]} 45. f5+ {[%emt 0:00:05]} Kd5 {[%emt 0:02:54]} 46. f6 {[%emt 0:02:39]} Rf2 {[%emt 0:02:51]} 47. Kg1 {[%emt 0:02:27]} g3 {[%emt 0:00:08]} 48. Nf7 {[%emt 0:00:03]} Ke6 {[%emt 0:02:42]} 49. Bd4 {[%emt 0:00:28]} Rd2 {[%emt 0:01:23]} 50. Ng5+ {[%emt 0:00:04]} Kd7 {[%emt 0:00:49]} 51. Kf1 {[%emt 0:00:20]} Rxd4 {[%emt 0:00:07]} 52. f7 {[%emt 0:00:18]} Rf4+ {[%emt 0:00:05]} 53. Ke2 {[%emt 0:00:06]} Rf2+ {[%emt 0:00:04]} 0-1